fUSD/lending_fUSD_20250103
["ID","MTS","AMOUNT","RATE_DAILY","PERIOD"]
[347495538,1735876258019,-237.92,9.762e-05,2]
[347495539,1735876258030,-237.92,9.762e-05,2]
[347495540,1735876258040,-500.0,9.762e-05,2]
[347495541,1735876258050,-500.0,9.762e-05,2]
[347495542,1735876258059,-500.0,9.762e-05,2]
[347495543,1735876258069,-614.6,9.762e-05,2]
[347495544,1735876258080,-500.0,9.762e-05,2]
[347495545,1735876258090,-583.58149563,9.762e-05,2]
[347495546,1735876258100,-555.41414634,9.762e-05,2]
[347495547,1735876258110,-532.25,9.762e-05,2]
[347495548,1735876258120,-1206.84,9.762e-05,2]
[347495549,1735876258130,-1910.2,9.762e-05,2]
[347495550,1735876258141,-5438.32,9.762e-05,2]
[347495551,1735876258151,-500.0,9.762e-05,2]
[347495552,1735876258160,-3271.77,9.762e-05,2]
[347495553,1735876258169,-4459.09,9.762e-05,2]
[347495554,1735876258179,-500.0,9.762e-05,2]
[347495555,1735876258188,-8693.84,9.762e-05,2]
[347495556,1735876258198,-1303.72,9.762e-05,2]
[347495557,1735876258207,-1913.42,9.762e-05,2]
[347495558,1735876258217,-1867.1,9.762e-05,2]
[347495559,1735876258227,-6301.17,9.762e-05,2]
[347495560,1735876258236,-1701.01,9.762e-05,2]
[347495561,1735876258246,-2142.78,9.762e-05,2]
[347495562,1735876258256,-4208.8,9.762e-05,2]
[347495563,1735876258266,-3261.33,9.762e-05,2]
[347495564,1735876258275,-3693.57,9.762e-05,2]
[347495565,1735876258285,-3330.24,9.762e-05,2]
[347495566,1735876258294,-3445.16,9.762e-05,2]
[347495567,1735876258304,-2512.88,9.762e-05,2]
[347495568,1735876258314,-500.0,9.762e-05,2]
[347495569,1735876258323,-2956.1,9.762e-05,2]
[347495570,1735876258335,-2384.45,9.762e-05,2]
[347495571,1735876258344,-478.676166,9.763e-05,2]
[347495572,1735876258355,-478.676166,9.763e-05,2]
[347495573,1735876258365,-478.676166,9.763e-05,2]
[347495574,1735876258375,-478.676166,9.763e-05,2]
[347495575,1735876258384,-478.676166,9.763e-05,2]
[347495576,1735876258393,-478.676166,9.763e-05,2]
[347495577,1735876258403,-151.0,9.763e-05,2]
[347495578,1735876258412,-500.0,9.763e-05,2]
[347495579,1735876258601,-500.0,9.763e-05,2]
[347495580,1735876258622,-500.0,9.763e-05,2]
[347495581,1735876258632,-500.0,9.763e-05,2]
[347495582,1735876258642,-609.24,9.763e-05,2]
[347495583,1735876258651,-948.3,9.763e-05,2]
[347495584,1735876258665,-478.676166,9.764e-05,2]
[347495585,1735876258674,-478.676166,9.764e-05,2]
[347495586,1735876258683,-478.676166,9.764e-05,2]
[347495587,1735876258692,-478.676166,9.764e-05,2]
[347495588,1735876258703,-478.676166,9.764e-05,2]
[347495589,1735876258713,-478.676169,9.764e-05,2]
[347495590,1735876258722,-151.0,9.764e-05,2]
[347495591,1735876258731,-237.92,9.764e-05,2]
[347495592,1735876258743,-237.92,9.764e-05,2]
[347495593,1735876258752,-500.0,9.764e-05,2]
[347495594,1735876258761,-274.215996,9.765e-05,2]
[347495595,1735876258771,-274.215996,9.765e-05,2]
[347495596,1735876258780,-274.215996,9.765e-05,2]
[347495597,1735876258789,-274.215996,9.765e-05,2]
[347495598,1735876258799,-274.215996,9.765e-05,2]
[347495599,1735876258808,-274.215996,9.765e-05,2]
[347495600,1735876258817,-151.0,9.765e-05,2]
[347495601,1735876258826,-151.0,9.765e-05,2]
[347495602,1735876258836,-948.3,9.765e-05,2]
[347495603,1735876258846,-274.215996,9.766e-05,2]
[347495604,1735876258855,-274.215996,9.766e-05,2]
[347495605,1735876258864,-274.215996,9.766e-05,2]
[347495606,1735876258873,-274.215996,9.766e-05,2]
[347495607,1735876258882,-151.0,9.766e-05,2]
[347495608,1735876258891,-500.0,9.767e-05,2]
[347495609,1735876258900,-500.0,9.767e-05,2]
[347495610,1735876258909,-500.0,9.767e-05,2]
[347495611,1735876258918,-274.215996,9.768e-05,2]
[347495612,1735876258927,-274.215996,9.768e-05,2]
[347495613,1735876258937,-210.868238,9.768e-05,2]
[347495614,1735876258947,-500.0,9.768e-05,2]
[347495615,1735876258956,-1273.115,9.768e-05,2]
[347495616,1735876258966,-2018.43,9.768e-05,2]
[347495617,1735876258976,-557.861,9.768e-05,2]
[347495618,1735876258985,-1908.144,9.768e-05,2]
[347495619,1735876258995,-3788.752,9.768e-05,2]
[347495620,1735876259004,-930.392,9.768e-05,2]
[347495621,1735876259014,-1262.933,9.768e-05,2]
[347495622,1735876259023,-823.0,9.768e-05,2]
[347495623,1735876259032,-3740.178,9.768e-05,2]
[347495624,1735876259042,-538.647,9.768e-05,2]
[347495625,1735876259051,-150.788,9.768e-05,2]
[347495626,1735876259062,-150.0,9.768e-05,2]
[347495627,1735876259071,-1262.845,9.768e-05,2]
[347495628,1735876259080,-151.779,9.768e-05,2]
[347495629,1735876259089,-3900.211,9.768e-05,2]
[347495630,1735876259099,-255.364,9.768e-05,2]
[347495631,1735876259108,-9609.0,9.768e-05,2]
[347495632,1735876259117,-251.689,9.768e-05,2]
[347495633,1735876259126,-276.367,9.768e-05,2]
[347495634,1735876259135,-1105.648,9.768e-05,2]
[347495635,1735876259144,-500.0,9.769e-05,2]
[347495636,1735876259153,-500.0,9.769e-05,2]
[347495637,1735876259163,-609.24,9.769e-05,2]
[347495638,1735876259172,-589.52,9.769e-05,2]
[347495639,1735876259181,-500.0,9.769e-05,2]
[347495640,1735876259190,-948.3,9.769e-05,2]
[347495641,1735876259200,-1075.0,9.77e-05,2]
[347495642,1735876259209,-150.0,9.77e-05,2]
[347495643,1735876259220,-150.0,9.77e-05,2]
[347495644,1735876259230,-150.0,9.77e-05,2]
[347495645,1735876259240,-150.0,9.77e-05,2]
[347495646,1735876259249,-150.0,9.77e-05,2]
[347495647,1735876259258,-88778.05303133,9.77e-05,2]
[347495648,1735876259267,-12441.67258318,9.77e-05,2]
[347495649,1735876259277,-556.02781402,9.77e-05,2]
[347495650,1735876259286,-6010.22072579,9.77e-05,2]
[347495651,1735876259295,-8825.29013626,9.77e-05,2]
[347495652,1735876259305,-274.215996,9.77e-05,2]
[347495653,1735876259314,-274.215996,9.77e-05,2]
[347495654,1735876259323,-237.92,9.77e-05,2]
[347495655,1735876259332,-237.92,9.77e-05,2]
[347495656,1735876259341,-500.0,9.796e-05,2]
[347495657,1735876259350,-205.0,9.8e-05,2]
[347495658,1735876259360,-1037.27246306,9.8e-05,2]
[347495659,1735876259369,-10517.15430148,9.8e-05,2]
[347495660,1735876259379,-1937.0,9.8e-05,2]
[347495661,1735876259388,-500.0,9.807e-05,2]
[347495662,1735876259398,-500.0,9.807e-05,2]
[347495663,1735876259407,-66230.03730168,9.808e-05,2]
[347495664,1735876259416,-274.215996,9.808e-05,2]
[347495665,1735876259425,-274.215996,9.808e-05,2]
[347495666,1735876259435,-580.75,9.812e-05,2]
[347495667,1735876259444,-1000.0,9.812e-05,2]
[347495668,1735876259453,-500.0,9.823e-05,2]
[347495669,1735876259462,-329.0546989,9.83e-05,2]
[347495670,1735876259472,-500.0,9.85e-05,2]
[347495671,1735876259481,-500.0,9.878e-05,2]
[347495672,1735876259490,-500.0,9.891e-05,2]
[347495673,1735876259499,-500.0,9.891e-05,2]
[347495674,1735876259508,-500.0,9.905e-05,2]
[347495675,1735876259518,-719.51,9.921e-05,2]
[347495676,1735876259527,-506.89142592,9.933e-05,2]
[347495677,1735876259536,-1349.02071111,9.935e-05,2]
[347495678,1735876259545,-186.62198899,9.936e-05,2]
[347495679,1735876259554,-478.85851956,9.971e-05,2]
[347495680,1735876259564,-255.03032644,9.971e-05,2]
[347495681,1735876259573,-19809.3493567,9.971e-05,2]
[347495682,1735876259582,-5482.43714517,9.971e-05,2]
[347495683,1735876259591,-1281.04803416,9.972e-05,2]
[347495684,1735876259600,-946.6048142,9.972e-05,2]
[347495685,1735876259609,-1281.04803416,9.972e-05,2]
[347495686,1735876259619,-19809.3493567,9.973e-05,2]
[347495687,1735876259628,-200.0,9.974e-05,2]
[347495688,1735876259637,-3299.32628878,9.975e-05,2]
[347495689,1735876259647,-208.73916761,9.976e-05,2]
[347495690,1735876259658,-9412.68047468,9.976e-05,2]
[347495691,1735876259668,-1281.04803416,9.976e-05,2]
[347495692,1735876259677,-255.03032644,9.976e-05,2]
[347495693,1735876259686,-478.85851956,9.977e-05,2]
[347495694,1735876259696,-1281.04803416,9.977e-05,2]
[347495695,1735876259705,-502.17882628,9.977e-05,2]
[347495696,1735876259715,-478.85851956,9.978e-05,2]
[347495697,1735876259724,-946.6048142,9.978e-05,2]
[347495698,1735876259733,-502.17882628,9.978e-05,2]
[347495699,1735876259743,-478.85851956,9.978e-05,2]
[347495700,1735876259753,-13792.34693465,9.979e-05,2]
[347495701,1735876259762,-6542.04532662,9.979e-05,2]
[347495702,1735876259771,-237.92,9.979e-05,2]
[347495703,1735876259780,-237.92,9.979e-05,2]
[347495704,1735876259790,-500.0,9.979e-05,2]
[347495705,1735876259799,-948.3,9.979e-05,2]
[347495706,1735876259809,-3299.32628878,9.979e-05,2]
[347495707,1735876259818,-13792.34693465,9.98e-05,2]
[347495708,1735876259828,-274.215996,9.98e-05,2]
[347495709,1735876259837,-274.215996,9.98e-05,2]
[347495710,1735876259847,-946.6048142,9.981e-05,2]
[347495711,1735876259856,-502.17882628,9.982e-05,2]
[347495712,1735876259866,-502.17882628,9.982e-05,2]
[347495713,1735876259876,-200.0,9.983e-05,2]
[347495714,1735876259885,-208.73916761,9.983e-05,2]
[347495715,1735876259895,-6542.04532662,9.984e-05,2]
[347495716,1735876259904,-946.6048142,9.984e-05,2]
[347495717,1735876259914,-6542.04532662,9.984e-05,2]
[347495718,1735876259924,-9412.68047468,9.985e-05,2]
[347495719,1735876259934,-19809.3493567,9.985e-05,2]
[347495720,1735876259943,-208.73916761,9.985e-05,2]
[347495721,1735876259954,-200.0,9.985e-05,2]
[347495722,1735876259964,-200.0,9.985e-05,2]
[347495723,1735876259975,-3299.32628878,9.986e-05,2]
[347495724,1735876259984,-1281.04803416,9.986e-05,2]
[347495725,1735876259993,-255.03032644,9.987e-05,2]
[347495726,1735876260003,-13792.34693465,9.987e-05,2]
[347495727,1735876260013,-13792.34693465,9.987e-05,2]
[347495728,1735876260023,-5482.43714517,9.987e-05,2]
[347495729,1735876260033,-478.85851956,9.988e-05,2]
[347495730,1735876260043,-502.17882628,9.989e-05,2]
[347495731,1735876260053,-208.73916761,9.989e-05,2]
[347495732,1735876260063,-3299.32628878,9.99e-05,2]
[347495733,1735876260072,-9412.68047468,9.99e-05,2]
[347495734,1735876260083,-9412.68047468,9.99e-05,2]
[347495735,1735876260092,-200.0,9.99e-05,2]
[347495736,1735876260102,-502.17882628,9.991e-05,2]
[347495737,1735876260111,-5482.43714517,9.991e-05,2]
[347495738,1735876260121,-9412.68047468,9.991e-05,2]
[347495739,1735876260131,-946.6048142,9.992e-05,2]
[347495740,1735876260140,-946.6048142,9.993e-05,2]
[347495741,1735876260153,-9412.68047468,9.993e-05,2]
[347495742,1735876260163,-200.0,9.994e-05,2]
[347495743,1735876260173,-19809.3493567,9.994e-05,2]
[347495744,1735876260183,-255.03032644,9.994e-05,2]
[347495745,1735876260192,-6542.04532662,9.994e-05,2]
[347495746,1735876260202,-3299.32628878,9.995e-05,2]
[347495747,1735876260212,-478.85851956,9.995e-05,2]
[347495748,1735876260223,-208.73916761,9.996e-05,2]
[347495749,1735876260233,-208.73916761,9.996e-05,2]
[347495750,1735876260243,-5482.43714517,9.996e-05,2]
[347495751,1735876260253,-13792.34693465,9.997e-05,2]
[347495752,1735876260263,-200.0,9.997e-05,2]
[347495753,1735876260273,-3299.32628878,9.997e-05,2]
[347495754,1735876260283,-13792.34693465,9.997e-05,2]
[347495755,1735876260292,-200.0,9.997e-05,2]
[347495756,1735876260302,-6542.04532662,9.997e-05,2]
[347495757,1735876260311,-200.0,9.998e-05,2]
[347495758,1735876260321,-19809.3493567,9.998e-05,2]
[347495759,1735876260331,-1281.04803416,9.998e-05,2]
[347495760,1735876260341,-255.03032644,9.999e-05,2]
[347495761,1735876260351,-5482.43714517,9.999e-05,2]
[347495762,1735876260360,-255.03032644,9.999e-05,2]
[347495763,1735876260370,-19809.3493567,9.999e-05,2]
[347495764,1735876260379,-6542.04532662,0.0001,2]
[347495765,1735876260389,-5482.43714517,0.0001,2]
[347495766,1735876260399,-1048.2243975,0.0001,2]
[347495767,1735876260408,-2897.26,0.0001,2]
[347495768,1735876260418,-2564.28316548,0.0001,2]
[347495769,1735876260427,-3116.00096392,0.0001,2]
[347495770,1735876260437,-3911.47,0.0001,2]
[347495771,1735876260446,-3000.0,0.0001,2]
[347495772,1735876260456,-3000.0,0.0001,2]
[347495773,1735876260465,-3000.0,0.0001,2]
[347495774,1735876260476,-3000.0,0.0001,2]
[347495775,1735876260486,-3000.0,0.0001,2]
[347495776,1735876260495,-3000.0,0.0001,2]
[347495777,1735876260504,-35493.67220104,0.0001,2]
[347495778,1735876260514,-151.26856358,0.0001,2]
[347495779,1735876260523,-5799.55229268,0.0001,2]
[347495780,1735876260533,-5799.55229268,0.0001,2]
[347495781,1735876260543,-2547.67908448,0.0001002,2]
[347495782,1735876261318,-3251.8732082,0.0001002,2]
[347495783,1735876261328,-500.0,0.00010026,2]
[347495784,1735876261337,-500.0,0.00010026,2]
[347495785,1735876261346,-500.0,0.00010026,2]
[347495786,1735876261355,-500.0,0.00010026,2]
[347495787,1735876261364,-500.0,0.00010026,2]
[347495788,1735876261373,-183.64650881,0.00010026,2]
[347495789,1735876261382,-379.82573049,0.00010026,2]
[347495790,1735876261393,-229.41426951,0.00010026,2]
[347495791,1735876261402,-589.52,0.00010026,2]
[347495792,1735876261411,-500.0,0.00010026,2]
[347495793,1735876261421,-948.3,0.00010026,2]
[347495794,1735876261431,-3322.73585899,0.00010027,2]
[347495795,1735876261442,-1095.6062822,0.00010027,2]
[347495796,1735876261453,-1469.6911387,0.00010027,2]
[347495797,1735876261464,-3999.64712997,0.00010027,2]
[347495798,1735876261475,-821.37766856,0.00010027,2]
[347495799,1735876261538,-175870.94192158,0.00010027,2]
[347495800,1735876261548,-20000.0,0.00010027,2]
[347495801,1735876261557,-274.215996,0.00010027,2]
[347495802,1735876261566,-274.215997,0.00010027,2]
[347495803,1735876261575,-5038.82,0.00010028,2]
[347495804,1735876261584,-4587.46,0.00010028,2]
[347495805,1735876261593,-3506.24,0.00010028,2]
[347495806,1735876261603,-3763.53,0.00010028,2]
[347495807,1735876261611,-500.0,0.00010028,2]
[347495808,1735876261621,-500.0,0.00010028,2]
[347495809,1735876261630,-6520.91,0.00010028,2]
[347495810,1735876261639,-1070.47,0.00010028,2]
[347495811,1735876261648,-500.0,0.00010028,2]
[347495812,1735876261660,-500.0,0.00010029,2]
[347495813,1735876261671,-500.0,0.00010029,2]
[347495814,1735876261681,-1191.91,0.00010029,2]
[347495815,1735876261690,-500.0,0.00010029,2]
[347495816,1735876261699,-1952.71,0.00010029,2]
[347495817,1735876261708,-630.89,0.00010029,2]
[347495818,1735876261717,-133.2753817,0.00010029,2]
[347495819,1735876261867,-366.7246183,0.00010029,2]
[347495820,1735876261876,-6.07615494,0.00010029,2]
[347495821,1735876261888,-493.92384506,0.00010029,2]
[347495822,1735876261897,-500.0,0.00010029,2]
[347495823,1735876261907,-500.0,0.00010029,2]
[347495824,1735876261916,-500.0,0.00010029,2]
[347495825,1735876261925,-1160.73,0.00010029,2]
[347495826,1735876261934,-437.21153383,0.00010029,2]
[347495827,1735876262800,-1947.11,9.755e-05,2]
[347495828,1735876262810,-62.78846617,0.00010029,2]
[347495829,1735876262820,-500.0,0.00010029,2]
[347495830,1735876262829,-890.21,0.00010029,2]
[347495831,1735876262839,-569.05,0.00010029,2]
[347495832,1735876262849,-1453.9,0.00010029,2]
[347495833,1735876262858,-500.0,0.00010029,2]
[347495834,1735876262868,-4688.96,0.00010029,2]
[347495835,1735876262877,-500.0,0.00010029,2]
[347495836,1735876262887,-563.52,0.00010029,2]
[347495837,1735876262896,-500.0,0.00010029,2]
[347495838,1735876262906,-500.0,0.00010029,2]
[347495839,1735876262919,-834.53,0.00010029,2]
[347495840,1735876262929,-500.0,0.00010029,2]
[347495841,1735876262938,-500.0,0.00010029,2]
[347495842,1735876262948,-500.0,0.00010029,2]
[347495843,1735876262957,-1258.00446906,0.00010029,2]
[347495844,1735876262969,-1430.76553094,0.00010029,2]
[347495845,1735876262981,-455.18597296,0.00010029,2]
[347495846,1735876263054,-120.83747157,0.00010029,2]
[347495847,1735876263063,-500.0,0.00010029,2]
[347495848,1735876263074,-500.0,0.00010029,2]
[347495849,1735876263084,-500.0,0.00010029,2]
[347495850,1735876263094,-8913.84,0.00010029,2]
[347495851,1735876263104,-500.0,0.00010029,2]
[347495852,1735876263114,-549.47,0.00010029,2]
[347495853,1735876263124,-1501.18,0.00010029,2]
[347495854,1735876263134,-500.0,0.00010029,2]
[347495855,1735876263143,-9583.03,0.00010029,2]
[347495856,1735876263153,-500.0,0.00010029,2]
[347495857,1735876263162,-1315.74,0.00010029,2]
[347495858,1735876263172,-500.0,0.00010029,2]
[347495859,1735876263182,-1511.55,0.00010029,2]
[347495860,1735876263192,-356.86,0.00010029,2]
[347495861,1735876263202,-500.0,0.00010029,2]
[347495862,1735876263211,-500.0,0.00010029,2]
[347495863,1735876263221,-500.0,0.00010029,2]
[347495864,1735876263232,-1695.62,0.00010029,2]
[347495865,1735876263242,-971.49,0.00010029,2]
[347495866,1735876263252,-500.0,0.00010029,2]
[347495867,1735876263262,-3263.03,0.00010029,2]
[347495868,1735876263273,-500.0,0.00010029,2]
[347495869,1735876263283,-500.0,0.00010029,2]
[347495870,1735876263293,-500.0,0.00010029,2]
[347495871,1735876263303,-500.0,0.00010029,2]
[347495872,1735876263314,-5666.69,0.00010029,2]
[347495873,1735876263325,-500.0,0.00010029,2]
[347495874,1735876263335,-9646.05,0.00010029,2]
[347495875,1735876263345,-500.0,0.00010029,2]
[347495876,1735876263355,-500.0,0.00010029,2]
[347495877,1735876263365,-500.0,0.00010029,2]
[347495878,1735876263375,-500.0,0.00010029,2]
[347495879,1735876263384,-760.07,0.00010029,2]
[347495880,1735876263394,-500.0,0.00010029,2]
[347495881,1735876263403,-500.0,0.00010029,2]
[347495882,1735876263413,-500.0,0.00010029,2]
[347495883,1735876263422,-1257.33,0.00010029,2]
[347495884,1735876263432,-814.31,0.00010029,2]
[347495885,1735876263442,-500.0,0.00010029,2]
[347495886,1735876263452,-4836.27,0.00010029,2]
[347495887,1735876263462,-4909.88,0.00010029,2]
[347495888,1735876263474,-500.0,0.00010029,2]
[347495889,1735876263483,-500.0,0.00010029,2]
[347495890,1735876263492,-500.0,0.00010029,2]
[347495891,1735876263502,-500.0,0.00010029,2]
[347495892,1735876263512,-500.0,0.00010029,2]
[347495893,1735876263523,-500.0,0.00010029,2]
[347495894,1735876263532,-8801.18,0.00010029,2]
[347495895,1735876263542,-500.0,0.00010029,2]
[347495896,1735876263552,-500.0,0.00010029,2]
[347495897,1735876263562,-500.0,0.00010029,2]
[347495898,1735876263572,-500.0,0.00010029,2]
[347495899,1735876263581,-500.0,0.00010029,2]
[347495900,1735876263590,-30254.27,0.00010029,2]
[347495901,1735876263600,-931.25,0.00010029,2]
[347495902,1735876263610,-500.0,0.00010029,2]
[347495903,1735876263620,-816.44,0.00010029,2]
[347495904,1735876263629,-500.0,0.00010029,2]
[347495905,1735876263639,-500.0,0.00010029,2]
[347495906,1735876263648,-853.81,0.00010029,2]
[347495907,1735876263659,-500.0,0.00010029,2]
[347495908,1735876263670,-500.0,0.00010029,2]
[347495909,1735876263680,-746.19,0.00010029,2]
[347495910,1735876263689,-577.57,0.00010029,2]
[347495911,1735876263699,-1005.83,0.00010029,2]
[347495912,1735876263709,-500.0,0.00010029,2]
[347495913,1735876263719,-500.0,0.00010029,2]
[347495914,1735876263731,-3773.13,0.00010029,2]
[347495915,1735876263741,-500.0,0.00010029,2]
[347495916,1735876263752,-8510.19,0.00010029,2]
[347495917,1735876263762,-500.0,0.00010029,2]
[347495918,1735876263772,-500.0,0.00010029,2]
[347495919,1735876263782,-500.0,0.00010029,2]
[347495920,1735876263791,-578.22,0.00010029,2]
[347495921,1735876263801,-500.0,0.00010029,2]
[347495922,1735876263811,-606.72,0.00010029,2]
[347495923,1735876263820,-500.0,0.00010029,2]
[347495924,1735876263830,-714.67,0.00010029,2]
[347495925,1735876263840,-500.0,0.00010029,2]
[347495926,1735876263849,-1330.64,0.00010029,2]
[347495927,1735876263859,-156.76,0.00010029,2]
[347495928,1735876263869,-1675.3,0.00010029,2]
[347495929,1735876263879,-516.16,0.00010029,2]
[347495930,1735876263889,-500.0,0.00010029,2]
[347495931,1735876263899,-526.6,0.00010029,2]
[347495932,1735876263909,-1568.24,0.00010029,2]
[347495933,1735876263919,-9811.64,0.00010029,2]
[347495934,1735876263930,-1098.5,0.00010029,2]
[347495935,1735876263939,-500.0,0.00010029,2]
[347495936,1735876263949,-500.0,0.00010029,2]
[347495937,1735876263960,-670.78,0.00010029,2]
[347495938,1735876263970,-500.0,0.00010029,2]
[347495939,1735876263982,-500.0,0.00010029,2]
[347495940,1735876263992,-500.0,0.00010029,2]
[347495941,1735876264003,-10417.03,0.00010029,2]
[347495942,1735876264013,-500.0,0.00010029,2]
[347495943,1735876264023,-500.0,0.00010029,2]
[347495944,1735876264033,-14349.85,0.00010029,2]
[347495945,1735876264043,-1728.18,0.00010029,2]
[347495946,1735876264055,-500.0,0.00010029,2]
[347495947,1735876264066,-699.53,0.00010029,2]
[347495948,1735876264076,-3383.04,0.00010029,2]
[347495949,1735876264085,-500.0,0.00010029,2]
[347495950,1735876264095,-500.0,0.00010029,2]
[347495951,1735876264105,-8190.01,0.00010029,2]
[347495952,1735876264115,-2865.86,0.00010029,2]
[347495953,1735876264125,-2370.33,0.00010029,2]
[347495954,1735876264134,-500.0,0.00010029,2]
[347495955,1735876264144,-500.0,0.00010029,2]
[347495956,1735876264154,-500.0,0.00010029,2]
[347495957,1735876264163,-18055.69,0.00010029,2]
[347495958,1735876264173,-500.0,0.00010029,2]
[347495959,1735876264183,-1332.13,0.00010029,2]
[347495960,1735876264192,-638.60568308,0.00010029,2]
[347495961,1735876264202,-7707.01,0.00010029,2]
[347495962,1735876264212,-500.0,0.00010029,2]
[347495963,1735876264224,-898.89,0.00010029,2]
[347495964,1735876264234,-1091.74,0.00010029,2]
[347495965,1735876264243,-500.0,0.00010029,2]
[347495966,1735876264253,-500.0,0.00010029,2]
[347495967,1735876264263,-3249.33,0.00010029,2]
[347495968,1735876264272,-3924.74,0.00010029,2]
[347495969,1735876264282,-500.0,0.00010029,2]
[347495970,1735876264293,-500.0,0.00010029,2]
[347495971,1735876264303,-500.0,0.00010029,2]
[347495972,1735876264313,-4005.63,0.00010029,2]
[347495973,1735876264322,-2411.83,0.00010029,2]
[347495974,1735876264332,-725.33,0.00010029,2]
[347495975,1735876264342,-500.0,0.00010029,2]
[347495976,1735876264352,-243.68632553,0.00010029,2]
[347495977,1735876264362,-500.0,0.00010029,2]
[347495978,1735876264372,-500.0,0.00010029,2]
[347495979,1735876264382,-3877.74,0.00010029,2]
[347495980,1735876264391,-500.0,0.00010029,2]
[347495981,1735876264401,-500.0,0.00010029,2]
[347495982,1735876264412,-1751.42,0.00010029,2]
[347495983,1735876264422,-500.0,0.00010029,2]
[347495984,1735876264432,-500.78,0.00010029,2]
[347495985,1735876264442,-500.0,0.00010029,2]
[347495986,1735876264452,-6041.13,0.00010029,2]
[347495987,1735876264462,-1763.09,0.00010029,2]
[347495988,1735876264474,-8265.98,0.00010029,2]
[347495989,1735876264484,-500.0,0.00010029,2]
[347495990,1735876264494,-701.3,0.00010029,2]
[347495991,1735876264504,-882.75,0.00010029,2]
[347495992,1735876264514,-500.0,0.00010029,2]
[347495993,1735876264524,-1155.74,0.00010029,2]
[347495994,1735876264534,-1947.11,0.00010029,2]
[347495995,1735876264544,-500.0,0.0001003,2]
[347495996,1735876264554,-500.0,0.0001003,2]
[347495997,1735876264564,-500.0,0.0001003,2]
[347495998,1735876264575,-500.0,0.0001003,2]
[347495999,1735876264850,-500.0,0.0001003,2]
[347496000,1735876264881,-811.62,0.0001003,2]
[347496001,1735876264891,-614.17583911,0.0001003,2]
[347496002,1735876264900,-500.0,0.0001003,2]
[347496003,1735876264909,-1304.72,0.0001003,2]
[347496004,1735876264918,-500.0,0.0001003,2]
[347496005,1735876264927,-500.0,0.0001003,2]
[347496006,1735876264936,-626.4,0.0001003,2]
[347496007,1735876264945,-500.0,0.0001003,2]
[347496008,1735876264954,-500.0,0.0001003,2]
[347496009,1735876264963,-500.0,0.0001003,2]
[347496010,1735876264972,-500.0,0.0001003,2]
[347496011,1735876264982,-500.0,0.0001003,2]
[347496012,1735876264991,-605.91,0.0001003,2]
[347496013,1735876265000,-500.0,0.0001003,2]
[347496014,1735876265010,-1705.04,0.0001003,2]
[347496015,1735876265019,-500.0,0.0001003,2]
[347496016,1735876265028,-1180.77,0.0001003,2]
[347496017,1735876265038,-500.0,0.0001003,2]
[347496018,1735876265047,-3561.75,0.0001003,2]
[347496019,1735876265056,-500.0,0.0001003,2]
[347496020,1735876265065,-500.0,0.0001003,2]
[347496021,1735876265075,-500.0,0.0001003,2]
[347496022,1735876265084,-500.0,0.0001003,2]
[347496023,1735876265094,-2438.05,0.0001003,2]
[347496024,1735876265103,-500.0,0.0001003,2]
[347496025,1735876265112,-500.0,0.0001003,2]
[347496026,1735876265121,-3387.49,0.0001003,2]
[347496027,1735876265131,-500.0,0.0001003,2]
[347496028,1735876265140,-2206.34,0.0001003,2]
[347496029,1735876265149,-500.0,0.0001003,2]
[347496030,1735876265159,-500.0,0.0001003,2]
[347496031,1735876265170,-2870.82,0.0001003,2]
[347496032,1735876265179,-500.0,0.0001003,2]
[347496033,1735876265188,-174.10697353,0.0001003,2]
[347496034,1735876265203,-1602.09302647,0.0001003,2]
[347496035,1735876265212,-500.0,0.0001003,2]
[347496036,1735876265222,-1497.02,0.0001003,2]
[347496037,1735876265232,-500.0,0.0001003,2]